{"text_format":"1","workbook":"xlsx","n_sheets":1,"sheets":["Ark1"],"not_rendered":{"charts":0,"images":0,"macros":0,"external_links":0,"defined_names":0,"comments":0,"pivot_tables":0},"unopened":[],"bounds":{"document_bytes":16777216,"sheet_cells":100000,"rows_first":2000,"rows_last":500,"rows_between":2000,"halvings":0,"cell_chars":16384,"cell_head_chars":4096},"cells_cut":0,"cells_raw":0,"read":"whole","date_system":"1900"}

{"sheet":"Ark1","index":0,"n_rows":50,"n_cols":12,"rows_kept":50,"cut":false,"hidden":false,"merged":[[49,0,49,11],[0,0,0,5],[0,6,0,11],[43,0,43,11],[44,0,44,11],[45,0,45,11],[17,0,17,5],[17,6,17,11],[28,0,28,5],[28,6,28,11]]}
["Legemiddeldosering og holdbarhet",null,null,null,null,null,"Innstillinger CADD Solis-pumpen"]
["Legmiddel","Dosering","Pose-volum (ml)**","Døgn-dose (g)","Konsentrasjon (mg/ml)","Holdbarhet","Infusjons-volum (ml)","Infusjons-varighet (min)","Infusjons-syklus        (timer mellom hver dosestart)","Infusjons-hastighet (ml/t)","KVO (ml/t)","Reservoar-volum    (ml) **"]
["Ampicillin","2g x 6",500,12,{"$f":"D3/C3*1000","v":24},"24 timer RT, 24 timer opptil 32 grader, 4 døgn K",76,30,4,152,2,520]
["Ampicillin","1g x 6",500,6,{"$f":"D4/C4*1000","v":12},"24 timer RT, 24 timer opptil 32 grader, 4 døgn K",76,30,4,152,2,520]
["Ampicillin","2g x 4",500,8,16,"24 timer RT, 24 timer opptil 32 grader, 4 døgn K",114,30,6,228,2,520]
["Ampicillin","1g x 4",500,4,8,"24 timer RT, 24 timer opptil 32 grader, 4 døgn K",114,30,6,228,2,520]
["Ampicillin","3g x 4",500,12,24,"24 timer RT, 24 timer opptil 32 grader, 4 døgn K",114,30,6,228,2,520]
["Aztreonam#","1g x 3",250,3,{"$f":"D8/C8*1000","v":12},"24 timer RT, 7 døgn K",75,30,8,150,2,278]
["Aztreonam#","1g x 4 ",500,4,8,"24 timer RT, 7 døgn K",120,30,6,240,2,545]
["Aztreonam#","2g x 3",500,6,12,"24 timer RT, 7 døgn K",165,40,8,247,2,558]
["Aztreonam#","2g x 4",500,8,16,"24 timer RT, 7 døgn K",127,40,6,190,2,570]
["Cefotaksim","1g x 3",250,3,12,"24 timer RT ",69,30,8,138,2,260]
["Cefotaksim","2g x 3",500,6,12,"24 timer RT",152,40,8,228,2,520]
["Cefotaksim","3g x 4",500,12,24,"24 timer RT",114,30,6,228,2,520]
["Ceftazidim","1g x 3",250,3,{"$f":"D15/C15*1000","v":12},"24 timer RT, 7 døgn K",69,30,8,138,2,260]
["Ceftazidim","2g x 3",500,6,{"$f":"D16/C16*1000","v":12},"24 timer RT, 7 døgn K",152,40,8,228,2,520]
[]
["Legemiddeldosering og holdbarhet",null,null,null,null,null,"Innstillinger CADD Solis-pumpen"]
["Legmiddel","Dosering","Pose-volum (ml)**","Døgn-dose (g)","Konsentrasjon (mg/ml)","Holdbarhet","Infusjons-volum (ml)","Infusjons-varighet (min)","Infusjons-syklus        (timer mellom hver dosestart)","Infusjons-hastighet (ml/t)","KVO (ml/t)","Reservoar-volum    (ml) **"]
["Cefuroksim","750mg x 4",500,3,{"$f":"D20/C20*1000","v":6},"24 timer RT, 24 timer opptil 32 grader, 7 døgn K",114,30,6,228,2,520]
["Cefuroksim","750mg x 3",250,2.25,9,"24 timer RT, 24 timer opptil 32 grader, 7 døgn K",69,30,8,138,2,260]
["Klindamycin","600mg x 3",500,1.80,3.60,"24 timer RT, 24 timer opptil 32 grader, 7 døgn K",152,40,8,228,2,520]
["Klindamycin","600mg x 4",500,2.40,4.80,"24 timer RT, 24 timer opptil 32 grader, 7 døgn K",114,30,6,228,2,520]
["Klindamycin","900mg x 3",500,2.70,5.40,"24 timer RT, 24 timer opptil 32 grader, 7 døgn K",152,40,8,228,2,520]
["Klindamycin","900mg x 4",500,3.60,7.20,"24 timer RT, 24 timer opptil 32 grader, 7 døgn K",114,30,6,228,2,520]
["Kloksacillin","1g x 4","250 x 2 *","2 + 2",{"$f":"2*1000/250","v":8},"24 timer RT, 14 timer opptil 32 grader, 7 døgn K",114,30,6,228,2,260]
["Kloksacillin","2g x 4","250 x 2 *","4 + 4",{"$f":"4*1000/250","v":16},"24 timer RT, 14 timer opptil 32 grader, 7 døgn K",114,30,6,228,2,260]
["Kloksacillin","2g x 6","250 x 2 *","6 + 6",{"$f":"6*1000/250","v":24},"24 timer RT, 14 timer opptil 32 grader, 7 døgn K",76,30,4,152,2,260]
["Legemiddeldosering og holdbarhet",null,null,null,null,null,"Innstillinger CADD Solis-pumpen"]
["Legmiddel","Dosering","Pose-volum (ml)**","Døgn-dose (g)","Konsentrasjon (mg/ml)","Holdbarhet","Infusjons-volum (ml)","Infusjons-varighet (min)","Infusjons-syklus        (timer mellom hver dosestart)","Infusjons-hastighet (ml/t)","KVO (ml/t)","Reservoar-volum    (ml) **"]
["Kloksacillin","1g x 4",500,4,{"$f":"D31/C31*1000","v":8},"24 timer RT, 7 døgn K",114,30,6,228,2,520]
["Kloksacillin","2g x 6",500,12,{"$f":"D32/C32*1000","v":24},"24 timer RT, 7 døgn K",76,30,4,152,2,520]
["Kloksacillin","2g x 4",500,8,16,"24 timer RT, 7 døgn K",114,30,6,228,2,520]
["Piperacillin/ Tazobaktam","4g x 4",500,16,32,"24 timer RT, 24 timer opptil 32 grader, 7 døgn K",114,30,6,228,2,520]
["Piperacillin/ Tazobaktam","4g x 3",500,12,24,"24 timer RT, 24 timer opptil 32 grader, 7 døgn K",152,40,8,228,2,520]
["Piperacillin/ Tazobaktam","4g x 4 forlenget",500,16,32,"24 timer RT, 24 timer opptil 32 grader,7 døgn K",114,180,6,38,2,520]
["Vankomycin ¤","1g x 2",500,2,4,"24 timer RT, 7 døgn K",248,60,12,248,2,560]
["Vankomycin ¤","1,5g x 2",500,3,6,"24 timer RT, 7 døgn K",259,90,12,173,2,580]
["Vankomycin ¤","1g x3",500,3,6,"24 timer RT, 7 døgn K",173,60,8,173,2,580]
[]
["Alle preparater blandes ut i Natriumklorid 9 mg/ml"]
["*Ved Kloksacillin vil døgndosen bli delt på 2 poser a 250 ml når posen skal bæres på pasienten."]
["Holdbarhet utover 24 timer forutsetter produksjon på sykehusapotek (sterilproduksjon). Holdbarhet gjelder for Freeflex poser"]
["Per nå er det Ampicillin, Cefuroksim, Klindamycin, Kloksacillin*, og Piperacillin/Tazobaktam som har bekreftet holdbarhet opptil 32 grader, og dermed kan bæres inntil kroppen i enten sekk eller magetaske"]
["**Utregninger er gjort etter et volum på posene på 500 ml og 250 ml. Det er overskudd av væske i posene, og vi skriver derfor 520 og 260 i reservoarvolum. Utregninger for Vancomycin er gjort med volum på 540 ml og 560 ml. Utregninger for Aztreonam er gjort med volum på hhv 268 ml, 525 ml, 538 ml og 550 ml."]
["¤ Vancomycin må blandes ut i sterilt vann først. 20 ml per 1 gram. Totalvolumet blir derfor økt med 40 ml for 2 gram og 60 ml for 3 grams doser. Dette medfører også at konsentrasjonen i posen blir nærmere 5 mg/ml enn 6 mg/ml som er anført i tabellen. Dermed går det greit å gi i PICC- eller MID-line. "]
["# Aztreonam må blandes ut i sterilt vann først. 10 ml per 2 gram. Pga volumøkning blir det totalt 12,5 ml pr 2 gram etter utblanding. "]
["Maks infusjonshastighet er satt til 250 ml/t pga infusjonssettet. "]
[]
["Protokollen er utarbeidet av provisorfarmasøyt Liv Marit Seljeflot og godkjent av seksjonsoverlege infeksjon Ingvild Svendsrud     7/3-25"]